Cogmind - Beta 11 @@@ ROGUE MODE // 2022.03.27 @ 19:13:32 Player: RNGesus Result: Destroyed by Y-54 Guardian with Flak Gun Performance ------------- Evolutions (3) 1500 Regions Visited (10) 2000 Robots Destroyed (166) 830 Value Destroyed (5025) 5025 Prototype IDs (15) 300 Alien Tech Used (0) 0 Bonus (1678) 1678 TOTAL SCORE: 11333 Bonus ------- High Alert Combat Kills 1006 Follower Combat Kills 177 Entered Garrisons 400 Used RIF Installer 500 Friendly Fire -405 Cogmind --------- Core Integrity 0/700 Matter 152/300 Energy 99/100 System Corruption 4% Temperature Cool (12) Movement Core (50) Location -7/Garrison Parts ------- > --- POWER (1) -------- (None) > --- PROPULSION (4) --- (None) > --- UTILITY (6) ------ Machine Analyzer Relay Coupler [NC] (1) Relay Coupler [NC] (21) Relay Coupler [Grunt] (17) > --- WEAPON (2) ------- Remote Datajack > --- INVENTORY (5) ---- Micro Nuclear Core Improved Medium Armor Plating Beamcaster Precision Grenade Launcher Chainsword Peak State ------------ > --- POWER ------------ Light Nuclear Core > --- PROPULSION ------- Aluminum Leg Improved Aluminum Leg Titanium Leg Improved Titanium Leg > --- UTILITY ---------- Improved Heat Sink Huge Storage Unit Experimental Sensor Array Improved Light Armor Plating Relay Coupler [NC] Corruption Screen > --- WEAPON ----------- Enhanced Autogun Enhanced Autogun > --- INVENTORY -------- Light Nuclear Core Micro Nuclear Core Aluminum Leg Weapon Cycler Transmission Jammer Transmission Jammer Improved Light Armor Plating Hacking Suite Relay Coupler [NC] Relay Coupler [Grunt] Relay Coupler [Grunt] Relay Coupler [Grunt] Relay Coupler [Sentry] Relay Coupler [Heavy] Relay Coupler [Behemoth] Beamcaster Beamcaster Enhanced Autogun Advanced EMP Blaster Improved Datajack Improved Datajack Heavy Flail Chainsword [Rating: 50] Favorites ----------- Power Light Nuclear Core Engine Ion Engine Power Core Light Nuclear Core Propulsion Aluminum Leg Treads Light Treads Leg Aluminum Leg Wheel Compact Wheel Hover Unit Backup Propulsion I Utility Improved Heat Sink Device Improved Heat Sink Storage Large Storage Unit Processor Corruption Screen Hackware Relay Coupler [NC] Protection Improved Light Armor Plating Weapon Enhanced Autogun Energy Gun Pulse Rifle Ballistic Gun Enhanced Autogun Launcher Precision Grenade Launcher Special Weapon Remote Datajack Slashing Weapon Chainsword Special Melee Weapon Improved Datajack Build | -11 -10 -10 -9 -9 -8 -8 -7 -7 -7 -7 ------- Run | Scr Mat Min Mat Min Mat Gar Fac Was Fac Gar Slots Evolved 6 | . . . 2 . 2 . 2 . . . Power . | . . . . . . . . . . . Propulsion 2 | . . . . . 2 . . . . . Utility 4 | . . . 2 . . . 2 . . . Weapon . | . . . . . . . . . . . Parts Attached 153 | 5 4 4 16 2 56 16 8 7 29 6 Power 14 | 1 . . 2 . 2 1 . . 7 1 Engine 6 | 1 . . 1 . 1 . . . 3 . Core 8 | . . . 1 . 1 1 . . 4 1 Reactor . | . . . . . . . . . . . Propulsion 46 | 2 . 1 5 . 22 8 1 1 6 . Treads 9 | 2 . 1 5 . 1 . . . . . Leg 26 | . . . . . 16 8 1 1 . . Wheel 5 | . . . . . 5 . . . . . Hover 6 | . . . . . . . . . 6 . Flight . | . . . . . . . . . . . Utility 44 | 1 1 1 4 . 13 3 5 4 11 1 Device 14 | . . . 2 . 6 1 2 . 3 . Storage 5 | 1 1 . . . 2 . . . 1 . Processor 2 | . . . . . . . 1 . 1 . Hackware 8 | . . . . . . . 1 4 2 1 Protection 15 | . . 1 2 . 5 2 1 . 4 . Artifact . | . . . . . . . . . . . Weapon 49 | 1 3 2 5 2 19 4 2 2 5 4 Energy Gun 19 | 1 1 . 2 2 9 . . . 2 2 Energy Cannon . | . . . . . . . . . . . Ballistic Gun 12 | . 1 1 2 . 5 2 1 . . . Ballistic Cannon . | . . . . . . . . . . . Launcher 10 | . 1 1 1 . 5 1 . . . 1 Special Weapon 2 | . . . . . . . . . 1 1 Impact Weapon . | . . . . . . . . . . . Slashing Weapon 2 | . . . . . . . . . 2 . Piercing Weapon . | . . . . . . . . . . . Special Melee Weapon 4 | . . . . . . 1 1 2 . . Unidentified Prototypes 6 | . . . 1 . 3 . 1 . 1 . Parts Lost 51 | . . . 4 . 25 4 . 9 6 3 Power 6 | . . . 2 . 2 1 . 1 . . Propulsion 22 | . . . 1 . 11 1 . 3 3 3 Utility 15 | . . . 1 . 8 2 . 3 1 . Weapon 8 | . . . . . 4 . . 2 2 . Highest Loss Streak 16 | . . . 1 . 16 1 . 9 2 1 To Critical Strikes 1 | . . . . . . . . 1 . . Average Slot Usage (%) 89 | . 83 100 97 100 88 89 100 76 82 55 Engine 5 | . 14 14 9 . 1 8 . . 1 . Core 3 | . . . . 11 6 . 7 5 3 1 Treads 9 | . 28 28 22 22 1 . . . . . Leg 14 | . . . . . 27 33 30 17 . . Hover 3 | . . . . . . . . . 22 11 Device 11 | . . . 22 22 15 8 13 6 4 . Storage 8 | . 14 14 11 11 8 9 7 4 2 6 Processor 1 | . . . . . . . 3 7 6 7 Hackware 3 | . . . . . . . 7 16 21 18 Protection 7 | . . 14 8 11 7 9 13 3 3 . Energy Gun 6 | . 13 14 3 20 7 . . . . 1 Ballistic Gun 10 | . 12 13 18 1 8 17 11 8 . . Naked Turns . | . . . . . . . . . . . Heaviest Build 112 | 12 34 32 41 38 112 112 99 96 19 22 Greatest Support 60 | 40 40 40 40 40 50 50 60 60 27 24 Greatest Overweight (x) 9 | . . . 1 . 9 6 1 5 . . Average Overweight (x) . | . . . . . 1 2 1 . . . Largest Inventory Capacity 25 | 8 15 15 15 15 25 25 25 25 8 8 Average Capacity 16 | 6 10 15 15 15 19 25 25 17 6 7 Most Carried 25 | 3 9 15 15 15 25 25 24 23 8 8 Average Carried 14 | 2 5 11 14 14 16 23 23 16 5 7 Final Capacity 25 | 8 15 15 15 15 25 25 25 5 8 5 Final Carried 24 | 3 9 15 15 15 19 24 23 5 7 5 Class Distribution -------------------- 53% | Scavenger-Mutant 33% | Mutant 13% | Bothacker-Mutant Dominant Class ---------------- Mutant | -10/Materials Mutant | -10/Mines Scavenger-Mutant | -9/Materials Scavenger-Mutant | -9/Mines Scavenger-Mutant | -8/Materials Scavenger-Mutant | -8/Garrison Bothacker-Mutant | -7/Factory Bothacker-Mutant | -7/Waste Mutant | -7/Factory Mutant | -7/Garrison Resources | -11 -10 -10 -9 -9 -8 -8 -7 -7 -7 -7 ----------- Run | Scr Mat Min Mat Min Mat Gar Fac Was Fac Gar Matter Collected 3755 | 206 260 157 496 20 1336 617 49 . 565 49 Remotely . | . . . . . . . . . . . Salvage Created 6460 | . 289 205 1096 33 3094 1145 49 . 418 131 Parts 371 | . 25 16 73 5 171 52 5 . 13 11 Haulers Intercepted 9 | . 1 . 3 . 4 . . . 1 . Recyclers Shooed 13 | . . 2 . . 10 . . . 1 . Parts Field Recycled . | . . . . . . . . . . . Retrieved Matter . | . . . . . . . . . . . Parts Self-Destructed . | . . . . . . . . . . . Prevented . | . . . . . . . . . . . Kills | -11 -10 -10 -9 -9 -8 -8 -7 -7 -7 -7 ------- Run | Scr Mat Min Mat Min Mat Gar Fac Was Fac Gar Combat Hostiles Destroyed 113 | . 9 6 20 . 46 23 1 . 1 7 Melee 1 | . . . . . . . . . 1 . Guns 81 | . 4 3 17 . 34 21 1 . . 1 AOE 29 | . 5 3 3 . 10 2 . . . 6 Classes Destroyed 16 | . 4 3 2 . 5 . 1 . 1 . Worker 14 | . . 2 3 . 9 . . . . . Builder 8 | . . 1 3 . 4 . . . . . Tunneler 8 | . 2 1 . 2 2 . . . 1 . Hauler 10 | . 1 . 3 . 4 . . . 2 . Recycler 11 | . . 1 . . 8 . . . 2 . Mechanic 1 | . . . . . . . . . 1 . Operator 5 | . . . 1 . 3 . . . 1 . Watcher 2 | . . . . . 2 . . . . . Swarmer 21 | . 3 6 . . 8 . . . . 4 Grunt 68 | . 6 . 14 . 28 18 . . . 2 Brawler 5 | . . . . . 1 4 . . . . Duelist 2 | . . . . . 1 1 . . . . Sentry 13 | . . . 6 . 7 . . . . . Hunter 1 | . . . . . 1 . . . . . Programmer 3 | . . . . . . . 1 . 1 1 Heavy 1 | . . . . . 1 . . . . . Best Kill Streak 9 | . 6 5 5 1 9 6 1 . 2 4 Combat Bots Only 6 | . 5 3 3 . 6 6 1 . 1 4 Max Kills in Single Turn 4 | . 2 2 3 1 4 2 1 . 1 2 Gunslinging 1 | . . . . . . 1 . . . . Exploded 3 | . 1 2 2 . 3 1 . . . 2 Melee 1 | . . . . . . . . . 1 . Uniques/NPCs Destroyed . | . . . . . . . . . . . Combat | -11 -10 -10 -9 -9 -8 -8 -7 -7 -7 -7 -------- Run | Scr Mat Min Mat Min Mat Gar Fac Was Fac Gar Damage Taken 6972 | . 388 140 865 6 2804 1334 15 582 539 299 Core 1272 | . 32 40 73 . 316 107 . 391 161 152 Absorbed by Shields . | . . . . . . . . . . . Core Remaining (%) 68 | 100 . 71 . 81 . 23 . . . . Volleys Fired 474 | . 38 19 72 3 230 70 4 . 21 17 Largest 2 | . 2 2 2 2 2 2 2 . 1 1 Hottest 138 | . 70 70 86 138 138 50 50 . 5 75 Shots Fired 832 | . 65 37 137 6 403 138 8 . 21 17 Gun 773 | . 58 35 133 6 391 136 8 . . 6 Cannon . | . . . . . . . . . . . Launcher 38 | . 7 2 4 . 12 2 . . . 11 Special 21 | . . . . . . . . . 21 . Kinetic 483 | . 30 18 104 . 187 136 8 . . . Thermal 290 | . 28 17 29 6 204 . . . . 6 Explosive 30 | . 7 2 4 . 6 . . . . 11 Electromagnetic 8 | . . . . . 6 2 . . . . Robot Hit Streak 29 | . 9 6 15 6 29 15 3 . 3 5 Robot Miss Streak 5 | . 4 3 3 1 5 3 1 . 2 1 Penetration Max . | . . . . . . . . . . . Secondary Targets 10 | . 1 1 1 . 2 5 . . . . Max Gunslinging Chain 1 | . 1 1 1 . 1 1 . . . . Shots Hit Robots 581 | . 32 21 98 3 271 89 11 . 48 8 Core Hits 254 | . 25 12 41 2 114 43 2 . 7 8 Critical Kills 1 | . . . 1 . . . . . . . Critical Parts Destroyed . | . . . . . . . . . . . Critical Strikes 18 | . . 2 3 . 9 . . . 3 1 Burn 14 | . . 2 2 . 9 . . . . 1 Destroy 1 | . . . 1 . . . . . . . Sever 3 | . . . . . . . . . 3 . Melee Attacks 60 | . . . . . . . 6 . 54 . Impact . | . . . . . . . . . . . Slashing 36 | . . . . . . . . . 36 . Piercing . | . . . . . . . . . . . Sneak Attacks 29 | . . . . . . . 6 . 23 . Combat Hostiles . | . . . . . . . . . . . Follow-up Attacks . | . . . . . . . . . . . Damage Inflicted 12788 | . 881 393 1767 55 6087 1694 90 . 1012 809 Guns 8802 | . 386 236 1414 55 4945 1545 90 . . 131 Cannons . | . . . . . . . . . . . Explosions 2974 | . 495 157 353 . 1142 149 . . . 678 Melee 1012 | . . . . . . . . . 1012 . Ramming . | . . . . . . . . . . . Kinetic 4976 | . 199 136 1018 . 1988 1545 90 . . . Thermal 3987 | . 187 100 396 55 3098 20 . . . 131 Explosive 2232 | . 495 157 353 . 549 . . . . 678 Electromagnetic 581 | . . . . . 452 129 . . . . Impact . | . . . . . . . . . . . Slashing 1012 | . . . . . . . . . 1012 . Piercing . | . . . . . . . . . . . Highest Corruption 4 | . 2 2 1 1 . . . . 1 4 Average Corruption 1 | . 1 2 1 1 . . . . 1 2 Corruption Purged . | . . . . . . . . . . . Corruption Blocked 3 | . . . . . . . . . 3 . Effects 28 | . 13 12 . 1 . . . . . 2 Message Errors 6 | . 3 1 . 1 . . . . . 1 Matter Fused 8 | . 3 4 . . . . . . . 1 Heat Flow Errors 3 | . 1 2 . . . . . . . . Energy Discharges 2 | . 2 . . . . . . . . . Data Loss (minor) 4 | . 2 2 . . . . . . . . Data Loss (major) 1 | . . 1 . . . . . . . . Misfires 1 | . . 1 . . . . . . . . Alerts 1 | . . 1 . . . . . . . . Weapon Failures 2 | . 2 . . . . . . . . . Overload Shots . | . . . . . . . . . . . Overflow Damage 281 | . 31 . . . 25 . . . 193 32 Projectiles . | . . . . . . . . . . . Explosions 88 | . 31 . . . 25 . . . . 32 Melee 193 | . . . . . . . . . 193 . Knockbacks . | . . . . . . . . . . . Impact . | . . . . . . . . . . . Kinetic . | . . . . . . . . . . . Secondary . | . . . . . . . . . . . Self-Inflicted Damage 42 | . . . . . 35 . . . . 7 Shots 3 | . . . . . 2 . . . . 1 Rammed . | . . . . . . . . . . . Targets Rammed . | . . . . . . . . . . . Kicked . | . . . . . . . . . . . Crushed . | . . . . . . . . . . . Highest Temperature 351 | . 171 250 28 42 351 89 . . . 59 Average Temperature 64 | . 43 50 7 24 88 24 . . . 28 Received Heat Transfer 2493 | . 153 9 351 . 978 819 . . 126 57 Effects 1 | . . . . . 1 . . . . . Energy Bleed 1 | . . . . . 1 . . . . . Siege Activations . | . . . . . . . . . . . Robots Corrupted . | . . . . . . . . . . . Combat Hostiles . | . . . . . . . . . . . Parts Fried 1 | . . . . . 1 . . . . . Impact Corruptions . | . . . . . . . . . . . Robots Melted 2 | . . . . . 2 . . . . . Combat Hostiles 2 | . . . . . 2 . . . . . Parts Melted 13 | . . 2 2 . 9 . . . . . Heat Transferred 9143 | . 555 444 999 111 6725 50 . . . 259 Parts Sabotaged . | . . . . . . . . . . . Parts Stolen . | . . . . . . . . . . . Parts Stripped . | . . . . . . . . . . . Power Chain Reactions 6 | . . . . . 5 1 . . . . Missiles Intercepted . | . . . . . . . . . . . Alert | -11 -10 -10 -9 -9 -8 -8 -7 -7 -7 -7 ------- Run | Scr Mat Min Mat Min Mat Gar Fac Was Fac Gar Peak Influence 1389 | . 308 249 332 279 786 1389 774 200 381 410 Initial 728 | . . 17 1 129 33 488 728 200 87 152 Average 402 | . 119 100 195 163 518 948 693 164 222 321 Maximum Alert Level 4 | . 1 1 1 1 3 4 3 1 1 2 Low Security (%) 38 | 100 90 75 54 72 18 . . 56 48 16 Level 1 20 | . 9 24 45 27 6 . . 43 51 79 Level 2 21 | . . . . . 50 31 29 . . 4 Level 3 15 | . . . . . 24 32 70 . . . Level 4 4 | . . . . . . 35 . . . . Level 5 . | . . . . . . . . . . . High Security . | . . . . . . . . . . . Max Security . | . . . . . . . . . . . Squads Dispatched 22 | . 1 . 2 1 12 . 2 . 4 . Investigation 4 | . . . 1 . 1 . . . 2 . Extermination 3 | . . . . . . . 2 . 1 . Reinforcement 9 | . 1 . 1 . 6 . . . 1 . Assault 1 | . . . . 1 . . . . . . Garrison 5 | . . . . . 5 . . . . . Intercept . | . . . . . . . . . . . Searches Triggered . | . . . . . . . . . . . Construction Impeded . | . . . . . . . . . . . Haulers Reinforced . | . . . . . . . . . . . Active Scanning Responses . | . . . . . . . . . . . Cargo Convoy Interrupts . | . . . . . . . . . . . Stealth | -11 -10 -10 -9 -9 -8 -8 -7 -7 -7 -7 --------- Run | Scr Mat Min Mat Min Mat Gar Fac Was Fac Gar Distress Signals 10 | . 2 . 2 . 6 . . . . . Communications Jammed . | . . . . . . . . . . . Distress Signals . | . . . . . . . . . . . Times Spotted 214 | . 19 7 28 3 84 25 1 6 33 8 Peak Tracking Total 6 | . 6 3 4 3 6 6 1 6 6 4 Tactical Retreats 16 | . . . . . 3 2 . . 10 1 Traps | -11 -10 -10 -9 -9 -8 -8 -7 -7 -7 -7 ------- Run | Scr Mat Min Mat Min Mat Gar Fac Was Fac Gar Traps Triggered 14 | . 2 . 1 . 2 2 1 . 4 2 Indirectly . | . . . . . . . . . . . Trap Hack Attempts 8 | . . . . . . 7 . . 1 . Triggered . | . . . . . . . . . . . Disarmed . | . . . . . . . . . . . Reprogrammed 2 | . . . . . . 1 . . 1 . Reused 1 | . . . . . . . . . 1 . Traps Extracted . | . . . . . . . . . . . Installed . | . . . . . . . . . . . Triggered 1 | . . . . . . . . . 1 . Machines | -11 -10 -10 -9 -9 -8 -8 -7 -7 -7 -7 ---------- Run | Scr Mat Min Mat Min Mat Gar Fac Was Fac Gar Machines Disabled 7 | . . 1 . . 2 3 . . . 1 Max in Single Turn 1 | . . 1 . . 1 1 . . . 1 Garrison Relay 3 | . . . . . . 3 . . . . Machines Sabotaged . | . . . . . . . . . . . Garrisons Compromised . | . . . . . . . . . . . Overloaded Fab Kills . | . . . . . . . . . . . Hacking | -11 -10 -10 -9 -9 -8 -8 -7 -7 -7 -7 --------- Run | Scr Mat Min Mat Min Mat Gar Fac Was Fac Gar Machines Accessed 21 | . 1 . 4 . 4 . 2 . 10 . Terminals 13 | . 1 . 4 . 2 . 1 . 5 . Fabricators 3 | . . . . . . . . . 3 . Repair Stations . | . . . . . . . . . . . Recycling Units 1 | . . . . . 1 . . . . . Scanalyzers 1 | . . . . . . . 1 . . . Garrison Access 3 | . . . . . 1 . . . 2 . Total Hacks 46 | . 3 . 13 . 9 . 4 . 17 . Successful 20 | . 2 . 3 . 3 . 2 . 10 . Failed 26 | . 1 . 10 . 6 . 2 . 7 . Catastrophic 5 | . . . 1 . 1 . . . 3 . Database Lockouts . | . . . . . . . . . . . Manual 27 | . 2 . 10 . 6 . 3 . 6 . Terminals 35 | . 3 . 13 . 6 . 3 . 10 . Fabricators 4 | . . . . . . . . . 4 . Repair Stations . | . . . . . . . . . . . Recycling Units 1 | . . . . . 1 . . . . . Scanalyzers 1 | . . . . . . . 1 . . . Garrison Access 5 | . . . . . 2 . . . 3 . Terminal Hacks 10 | . 1 . 3 . 1 . . . 5 . Prototype ID Bank 2 | . . . . . . . . . 2 . Branch Access Points 4 | . 1 . 2 . . . . . 1 . Unreport Threat 1 | . . . . . 1 . . . . . Hauler Manifests 2 | . . . 1 . . . . . 1 . Registered Components 1 | . . . . . . . . . 1 . Fabricator Hacks 1 | . . . . . . . . . 1 . Build 1 | . . . . . . . . . 1 . Repair Station Hacks . | . . . . . . . . . . . Recycling Unit Hacks 1 | . . . . . 1 . . . . . Report Inventory 1 | . . . . . 1 . . . . . Scanalyzer 1 | . . . . . . . 1 . . . Insert Component 1 | . . . . . . . 1 . . . Garrison Access Hacks 3 | . . . . . 1 . . . 2 . Unlock Access 2 | . . . . . 1 . . . 1 . Coupler Status 1 | . . . . . . . . . 1 . Unauthorized Hacks 4 | . 1 . . . . . 1 . 2 . Terminals 3 | . 1 . . . . . 1 . 1 . Assimilate 1 | . . . . . . . . . 1 . Operators 2 | . 1 . . . . . 1 . . . Fabricators . | . . . . . . . . . . . Repair Stations . | . . . . . . . . . . . Recycling Units . | . . . . . . . . . . . Scanalyzers . | . . . . . . . . . . . Garrison Access 1 | . . . . . . . . . 1 . Eject 1 | . . . . . . . . . 1 . Data Cores Recovered . | . . . . . . . . . . . Used . | . . . . . . . . . . . Hacking Detections 14 | . 1 . 4 . 2 . 1 . 6 . Full Trace Events 2 | . . . 1 . 1 . . . . . Feedback Events . | . . . . . . . . . . . Feedback Blocked . | . . . . . . . . . . . Robot Schematics Acquired . | . . . . . . . . . . . Robots Built 1 | . . . . . . . . . 1 . Authchips . | . . . . . . . . . . . Time 81 | . . . . . . . . . 81 . Total Robot Build Rating 1 | . . . . . . . . . 1 . Part Schematics Acquired . | . . . . . . . . . . . Parts Built . | . . . . . . . . . . . Authchips . | . . . . . . . . . . . Time . | . . . . . . . . . . . Total Part Build Rating . | . . . . . . . . . . . Parts Repaired . | . . . . . . . . . . . Time . | . . . . . . . . . . . Parts Recycled . | . . . . . . . . . . . Recycled Matter . | . . . . . . . . . . . Retrieved Matter . | . . . . . . . . . . . Retrieved Components . | . . . . . . . . . . . Parts Scanalyzed . | . . . . . . . . . . . Part Schematics Acquired . | . . . . . . . . . . . Parts Damaged . | . . . . . . . . . . . Bothacking | -11 -10 -10 -9 -9 -8 -8 -7 -7 -7 -7 ------------ Run | Scr Mat Min Mat Min Mat Gar Fac Was Fac Gar Used RIF Installer 1 | . . . . . . 1 . . . . Robots Hacked 21 | . . . . . . . 2 . 19 . Non-combat 14 | . . . . . . . 2 . 12 . Combat 7 | . . . . . . . . . 7 . Robot Hacks Applied 24 | . . . . . . . 3 . 21 . parse_system 2 | . . . . . . . . . 2 . generate_anomaly 1 | . . . . . . . . . 1 . ignore_repairs 1 | . . . . . . . . . 1 . map_walls 2 | . . . . . . . . . 2 . map_earth 1 | . . . . . . . 1 . . . drop_inventory 3 | . . . . . . . 1 . 2 . locate_stockpiles 1 | . . . . . . . 1 . . . release_backups 1 | . . . . . . . . . 1 . locate_traps 1 | . . . . . . . . . 1 . map_route 2 | . . . . . . . . . 2 . mark_security 1 | . . . . . . . . . 1 . link_fov 2 | . . . . . . . . . 2 . mark_system 1 | . . . . . . . . . 1 . amplify_resonance 2 | . . . . . . . . . 2 . go_dormant 1 | . . . . . . . . . 1 . formatsys_high 2 | . . . . . . . . . 2 . Relay Couplers Released 17 | . . . . . . 13 . . 4 . Ejected 4 | . . . . . . . . . 4 . Machine Destruction 13 | . . . . . . 13 . . . . Attached 8 | . . . . . . . 1 4 2 1 Fabnet Peak Effective % . | . . . . . . . . . . . Robots Rewired . | . . . . . . . . . . . Allies Hacked . | . . . . . . . . . . . Hacks Repelled . | . . . . . . . . . . . Allies | -11 -10 -10 -9 -9 -8 -8 -7 -7 -7 -7 -------- Run | Scr Mat Min Mat Min Mat Gar Fac Was Fac Gar Total Allies 8 | . . . . 4 . . . . 4 . Largest Group 4 | . . . . 4 3 . . . 1 . Highest-Rated Group 71 | . . . . 71 55 . . . 32 . Highest-Rated Ally 32 | . . . . 31 31 . . . 32 . Total Orders 1 | . . . . . . . . . 1 . DROP 1 | . . . . . . . . . 1 . Ally Attacks 71 | . . . . 15 35 . . . 21 . Total Damage 747 | . . . . 166 242 . . . 339 . Kills 11 | . . . . 6 2 . . . 3 . Allies Corrupted . | . . . . . . . . . . . Allies Melted . | . . . . . . . . . . . Intel | -11 -10 -10 -9 -9 -8 -8 -7 -7 -7 -7 ------- Run | Scr Mat Min Mat Min Mat Gar Fac Was Fac Gar Robot Analysis Total . | . . . . . . . . . . . Derelict Logs Recovered 1 | . . 1 . . . . . . . . Drone Launches . | . . . . . . . . . . . Drone Recoveries . | . . . . . . . . . . . Exploration | -11 -10 -10 -9 -9 -8 -8 -7 -7 -7 -7 ------------- Run | Scr Mat Min Mat Min Mat Gar Fac Was Fac Gar Turns Passed 9991 | 86 804 857 1175 569 3120 1190 567 126 1297 200 Spaces Moved 5951 | 49 424 494 504 334 1417 442 273 109 1713 192 Core 117 | 2 . . . . 5 . . 73 29 8 Treads 1803 | 47 424 494 504 334 . . . . . . Legs 1736 | . . . . . 1041 386 273 36 . . Wheels 427 | . . . . . 371 56 . . . . Hover 1868 | . . . . . . . . . 1684 184 Flight . | . . . . . . . . . . . Fastest Speed 50 | 50 160 160 160 160 100 190 192 50 50 50 Average Speed 137 | 155 160 160 182 160 169 221 194 107 60 60 Slowest Speed 480 | 160 160 160 240 160 330 405 195 480 66 66 Overloaded Moves . | . . . . . . . . . . . Propulsion Burnouts . | . . . . . . . . . . . Robots Hopped . | . . . . . . . . . . . Cave-ins Triggered . | . . . . . . . . . . . Exploration Rate (%) 57 | 5 97 97 47 60 89 73 9 69 46 43 Regions Visited 10 Branch Regions 2 Pre-discovered Areas . | . . . . . . . . . . . Known Exits Taken 5 | . 1 . 1 1 1 . . . 1 . Unknown Exits Taken 2 | 1 . 1 . . . . . . . . Scrap Searched 2 | . . 2 . . . . . . . . Spaces Dug 41 | . 7 . . . 12 . . . 16 6 Terrain Destroyed 177 | . 31 18 19 . 65 1 . . 16 27 Melee 16 | . . . . . . . . . 16 . Projectile . | . . . . . . . . . . . AOE 161 | . 31 18 19 . 65 1 . . . 27 Terrain Rammed . | . . . . . . . . . . . Walls Destroyed . | . . . . . . . . . . . Machines Disabled . | . . . . . . . . . . . Actions | -11 -10 -10 -9 -9 -8 -8 -7 -7 -7 -7 --------- Run | Scr Mat Min Mat Min Mat Gar Fac Was Fac Gar Total 7041 | 56 482 525 629 364 1815 574 303 117 1914 262 Wait 153 | . 10 1 7 21 38 9 8 . 49 10 Move 5941 | 48 423 493 503 333 1416 440 273 108 1712 192 Hop . | . . . . . . . . . . . Pick Up 103 | 3 6 7 15 2 44 11 2 1 10 2 Fast Attach 46 | 5 1 . 1 . 19 2 . . 17 1 Attach 48 | . 1 1 7 1 15 4 2 6 7 4 Detach 12 | . 1 . . . 3 . . . 5 3 Swap 59 | . 2 3 8 1 22 10 6 1 5 1 Drop 78 | . . 1 16 3 28 8 2 1 13 6 Fire 474 | . 38 19 72 3 230 70 4 . 21 17 Melee 60 | . . . . . . . 6 . 54 . Ram . | . . . . . . . . . . . Kick . | . . . . . . . . . . . Crush . | . . . . . . . . . . . Escape Stasis 59 | . . . . . . 13 . . 20 26 Rewire . | . . . . . . . . . . . Trap 8 | . . . . . . 7 . . 1 . Miscellaneous . | . . . . . . . . . . . Route ------- -11/Scrapyard -10/Materials (discovered 4 exits: *Mat x3 / *Min) -10/Mines (discovered 3 exits: *Mat x2 / [*Exi]) -9/Materials (discovered 5 exits: *Mat x3 / *Min x2) -9/Mines (discovered 3 exits: *Mat x2 / [*Zio]) -8/Materials (discovered 4 exits: *Fac x3 / Gar) -8/Garrison (discovered 2 exits: *Fac x2) -7/Factory -7/Waste -7/Factory (discovered 7 exits: [*Fac x3] / Sto / *Low x2 / Gar) -7/Garrison (discovered 1 exit: [*Fac]) History --------- Turn | Location | Event 12 | -11/Scrapyard | Discovered new exit (range 16) 87 | -11/Scrapyard | Entered Materials 113 | -10/Materials | Identified exit to Mines 302 | -10/Materials | Discovered new exit (range 15) 308 | -10/Materials | Build established: Mutant 523 | -10/Materials | Discovered new exit (range 15) 770 | -10/Materials | Discovered new exit (range 7) 891 | -10/Materials | Entered Mines 956 | -10/Mines | Discovered new exit (range 5) 1173 | -10/Mines | Learned 8 Materials zone layouts 1183 | -10/Mines | Deemed a non-threat by the Exiles lab entrance 1183 | -10/Mines | Discovered new exit (range 5) 1236 | -10/Mines | Received a Rocket Launcher from a helpful Derelict 1361 | -10/Mines | Discovered new exit (range 3) 1391 | -10/Mines | Joined a pair of Derelicts in attacking an 0b10 outpost 1748 | -10/Mines | Entered Materials 1748 | -9/Materials | Evolved 2 slots: Utility x2 1749 | -9/Materials | Identified exit to Mines 1749 | -9/Materials | Identified exit to Materials 1866 | -9/Materials | Discovered exit to Materials (range 15) 2074 | -9/Materials | Build established: Scavenger-Mutant 2123 | -9/Materials | Discovered exit to Mines (range 15) 2507 | -9/Materials | Discovered exit to Materials (range 15) 2923 | -9/Materials | Entered Mines 2924 | -9/Mines | Met a Derelict testing a Signal Generator 2927 | -9/Mines | Met a Derelict bent on vengeance 2946 | -9/Mines | Found a damaged Exp. Sensor Array with a note attached 2950 | -9/Mines | Found Prototype Device 2975 | -9/Mines | Assisted by bots powering up and referring to "LRC-V3" 2987 | -9/Mines | A Derelict revealed a hidden shortcut to a safe place 3084 | -9/Mines | Discovered exit to Materials (range 13) 3187 | -9/Mines | Discovered exit to Materials (range 9) 3290 | -9/Mines | Found a hidden stash of uninstalled traps 3492 | -9/Mines | Entered Materials 3492 | -8/Materials | Accompanied by 3 allies 3492 | -8/Materials | Evolved 2 slots: Propulsion x2 4377 | -8/Materials | Discovered new exit (range 16) 4489 | -8/Materials | Garrison activated, responded to threat 4874 | -8/Materials | Discovered new exit (range 16) 5424 | -8/Materials | Garrison activated, responded to threat 5569 | -8/Materials | Garrison activated, responded to threat 5776 | -8/Materials | Core integrity fell below 50% 5827 | -8/Materials | Lost 16 parts (1p5n7u3w) 6029 | -8/Materials | Build established: Mutant 6228 | -8/Materials | Discovered new exit (range 5) 6381 | -8/Materials | Build established: Scavenger-Mutant 6611 | -8/Materials | Identified exit to Garrison 6612 | -8/Materials | Entered Garrison 6698 | -8/Garrison | Triggered checkpoint 6733 | -8/Garrison | Triggered checkpoint 6810 | -8/Garrison | Garrison Relay disabled 6950 | -8/Garrison | Triggered checkpoint 7338 | -8/Garrison | Triggered checkpoint 7374 | -8/Garrison | Garrison Relay disabled 7482 | -8/Garrison | Discovered new exit (range 12) 7513 | -8/Garrison | Installed Relay Interface Framework 7594 | -8/Garrison | Triggered checkpoint 7647 | -8/Garrison | Discovered new exit (range 8) 7678 | -8/Garrison | Triggered checkpoint 7732 | -8/Garrison | Garrison Relay disabled 7802 | -8/Garrison | Entered Factory 7802 | -7/Factory | Evolved 2 slots: Utility x2 7803 | -7/Factory | Identified Exp. Sensor Array 7824 | -7/Factory | Build established: Bothacker-Mutant 8369 | -7/Factory | Sucked down chute 8369 | -7/Factory | Entered Waste 8401 | -7/Waste | Spotted C-40 Crusher 8403 | -7/Waste | Spotted C-40 Crusher 8424 | -7/Waste | Crushed by Compactor (1 part destroyed, 1 dropped) 8434 | -7/Waste | Crushed by Compactor (1 part destroyed, 1 dropped) 8435 | -7/Waste | Crushed by Compactor (1 part destroyed) 8438 | -7/Waste | Crushed by Compactor (1 part destroyed) 8441 | -7/Waste | Crushed by Compactor (1 part destroyed, 1 dropped) 8450 | -7/Waste | Crushed by Compactor (1 part destroyed, 1 dropped) 8451 | -7/Waste | Spotted C-40 Crusher 8465 | -7/Waste | Crushed by Compactor (1 part destroyed) 8470 | -7/Waste | Core integrity fell below 50% 8476 | -7/Waste | Spotted C-40 Crusher 8478 | -7/Waste | Spotted C-40 Crusher 8486 | -7/Waste | Discovered new exit (range 15) 8486 | -7/Waste | Spotted C-40 Crusher 8495 | -7/Waste | Entered Factory 8500 | -7/Factory | Lost 9 parts (1p3n3u2w) 8688 | -7/Factory | Discovered new exit (range 16) 8757 | -7/Factory | Discovered new exit (range 98) 8857 | -7/Factory | Discovered new exit (range 5) 8865 | -7/Factory | Discovered new exit (range 12) 8912 | -7/Factory | Identified exit to Storage 8912 | -7/Factory | Identified exit to Lower Caves 8931 | -7/Factory | Build established: Mutant 9031 | -7/Factory | Fabricated A-02 Transporter (x1) 9059 | -7/Factory | Found Rocket Array 9580 | -7/Factory | Discovered new exit (range 16) 9761 | -7/Factory | Discovered new exit (range 16) 9792 | -7/Factory | Identified exit to Garrison 9792 | -7/Factory | Entered Garrison 9823 | -7/Garrison | Triggered checkpoint 9832 | -7/Garrison | Triggered checkpoint 9861 | -7/Garrison | Core integrity fell below 20% 9989 | -7/Garrison | Discovered new exit (range 10) 9992 | -7/Garrison | Destroyed by Y-54 Guardian with Flak Gun Last Messages --------------- 09948_ Field strength at 65. 09949_ Field strength at 58. 09950_ Field strength at 51. 09951_ Field strength at 44. 09952_ Field strength at 37. 09953_ Field strength at 30. 09954_ Field strength at 23. 09955_ Field strength at 16. 09956_ Field strength at 9. 09957_ Field strength at 2. 09958_ Stasis field depleted. 09959_ The unstable cave ceiling collapses. 09963_ ,U#9%D#0 OT